{"text_format":"1","workbook":"xlsx","n_sheets":3,"sheets":["Sheet1","Sheet2","Sheet3"],"not_rendered":{"charts":0,"images":0,"macros":0,"external_links":0,"defined_names":2,"comments":0,"pivot_tables":0},"unopened":[],"bounds":{"document_bytes":16777216,"sheet_cells":100000,"rows_first":2000,"rows_last":500,"rows_between":2000,"halvings":0,"cell_chars":16384,"cell_head_chars":4096},"cells_cut":0,"cells_raw":0,"read":"whole","date_system":"1900"}

{"sheet":"Sheet1","index":0,"n_rows":42,"n_cols":11,"rows_kept":42,"cut":false,"hidden":false,"merged":[[0,2,3,7]]}
["                                                                    USDA - RUS",null,"Assistance to High Energy Cost Rural Communities",null,null,null,null,null,"OMB  No."]
[null,null,null,null,null,null,null,null,null,"0572-0136"]
["      SUMMARY  OF  INFORMATION  COLLECTION",null,null,null,null,null,null,null,"Date  Prepared"]
[null,null,null,null,null,null,null,null,"2021-05-11"]
[" INSTRUCTIONS:"," ",null,">",null,null,"(h)  TOTAL",null,"(k)  TOTAL"]
["Use this form when a single information collection document involves multiple reporting and                  ",null,null,">","-","= (e)  Average","-","= (g)  Average","-","= (j) Average"," "]
["  recordkeeping requirements.  ",null,null,">",null,null,"(f)  TOTAL",null,"(i)  TOTAL"]
["         IDENTIFICATION  OF  REPORTING  AND  RECORDKEEPING  REQUIREMENTS",null,null,null,null,null,"ANNUAL  BURDEN"]
[null,null,"FORM",null,null,"REPORTS",null,null,null,"RECORDS"]
[null,null,"NO(s)","NO.  OF","NO. OF ","TOTAL","HOURS","TOTAL","NO.  OF","ANNUAL","TOTAL"]
["SECTION  OF",null,"(If  \"none\"","RESPON-","RESPONSES","ANNUAL","PER","HOURS","RECORD-","HOURS  PER","RECORD-"]
["REGULATIONS","DESCRIPTION","so  state)","DENTS","PER","RESPONSES","RESPONSE","(Col.  f  &  g)","KEEPERS","RECORD-","KEEPING"]
[null,null,null,null,"RESPOND-","(Col.  d  &  e)",null,null,null,"KEEPER","HOURS"]
[null,null,null,null,"DENT",null,null,null,null,null,"(Col.  i  &  j)"]
["(a)","(b)","(c)","(d)","e","(f)","(g)","(h)","(i)","(j)","(k)"]
[null,"ITEMS APPROVED UNDER THIS COLLECTION"]
[null,"Narrative Grant Proposal Application","Non-Form",60,1,{"$f":"SUM(D17*E17)","v":60},10,{"$f":"SUM(F17*G17)","v":600}]
[null,"RUS Environmental Profile","Non-Form",60,1,{"$f":"SUM(D18*E18)","v":60},1,{"$f":"SUM(F18*G18)","v":60},null,null," "]
[null,"Grant Award and Post Award                                                                                           (Selected from 60 applicant respondents)"]
[null,"Grant Agreement","Non-Form",12,1,{"$f":"SUM(D20*E20)","v":12},1,{"$f":"SUM(F20*G20)","v":12}]
[" ","Performance Reports","Non-Form",40,4,{"$f":"SUM(D21*E21)","v":160},2,{"$f":"SUM(F21*G21)","v":320}]
[" ","Final Performance Report","Non-Form",12,1,{"$f":"SUM(D22*E22)","v":12},5,{"$f":"SUM(F22*G22)","v":60}," "," "]
[" ","Recordkeeping Requirements","Non-Form",null,null,null,null,null,40,3,120]
[null,"Subtotal this Collection",null,null,null,{"$f":"SUM(F17:F23)","v":304},null,{"$f":"SUM(H17:H23)","v":1052},{"$f":"SUM(I17:I23)","v":40},null,{"$f":"SUM(K17:K23)","v":120}]
[null,"TOTALS",null,null,null,{"$f":"SUM(F24+I24)","v":344},null,{"$f":"SUM(H24+K24)","v":1172}]
[" ",null,null,null,null," ",null," "]
[null,"FORMS APPROVED UNDER OTHER COLLECTIONS",null,null,null,null,null," "]
[null,"Application for Federal Assistance  (4040-0004)"," SF-424",60,1,{"$f":"SUM(D28*E28)","v":60},0.75,{"$f":"SUM(F28*G28)","v":45}]
[null,"Budget Information Non-Construction Programs (4040-0006)","SF-424A",60,1,{"$f":"SUM(D29*E29)","v":60},1,{"$f":"SUM(G29*F29)","v":60}]
[null,"OR Budget Information Construction Programs (4040-0008)","SF-424C",null,null,null,null," "," "," "]
[null,"Assurances Non-Construction Programs (4040-0009)","SF-424B",60,1,60,0.25,15]
[null,"OR Assurances Construction Programs (4040-0009)","SF-424D"]
[null,"Representations Re: Felony Conviction (0505-0025)","AD-3030",60,1,{"$f":"SUM(D33*E33)","v":60},0.5,30]
[null,"Assurances Re: Felony Conviction and Tax Delinquency","AD-3031",12,1,12,0.5,{"$f":"F34*G34","v":6}]
[null,"Letter of Intent (0575-0015)","RD 1942-46",12,1,{"$f":"SUM(D35*E35)","v":12},1,{"$f":"SUM(F35*G35)","v":12}]
[null,"Disclosure of Lobbying Activities (4040-0013)","SF-LLL",60,1,{"$f":"SUM(D36*E36)","v":60},0.25,{"$f":"F36*G36","v":15}]
[null,"Post Award:"]
[null,"Federal Financial Report (4040-0014)","SF-425",40,4,{"$f":"SUM(D38*E38)","v":160},1.5,{"$f":"SUM(F38*G38)","v":240}]
[null,"Request for Reimbursement or Advance of Funds (4040-0012)","SF-270",2,4,{"$f":"D39*E39","v":8},1,{"$f":"F39*G39","v":8}]
[null,"Outlay Report and Request for Reimbursement (Const.)        (4040-0011)","SF-271",38,4,{"$f":"SUM(D40*E40)","v":152},1,{"$f":"F40*G40","v":152}]
[null,null,null,null,null,null,null,null," "," "," "]
[" RUS  Form  36   (07-91)"]

{"sheet":"Sheet2","index":1,"n_rows":0,"n_cols":0,"rows_kept":0,"cut":false,"hidden":false,"merged":[]}

{"sheet":"Sheet3","index":2,"n_rows":0,"n_cols":0,"rows_kept":0,"cut":false,"hidden":false,"merged":[]}